bitfinex/quotes_ETHUSD_20240821
["timestamp","ask_amount","ask_price","bid_price","bid_amount"]
[1724219406154,3.34437743,2598.5,2597.9,2.2011]
[1724219406438,3.34437743,2598.5,2597.8,1.893781]
[1724219406439,3.34437743,2599.1,2598.4,1.668]
[1724219406786,5.01237743,2599.2,2598.4,1.668]
[1724219407235,5.01237743,2599.2,2598.0,0.55]
[1724219407236,5.01237743,2599.2,2598.2,1.668]
[1724219407437,1.668,2599.0,2598.2,1.668]
[1724219407643,1.668,2599.0,2598.3,2.4564]
[1724219407875,1.668,2599.0,2598.5,2.4564]
[1724219411001,1.668,2599.2,2598.5,2.4564]
[1724219411305,0.4024851,2599.3,2598.9,2.4995]
[1724219411599,1.668,2599.7,2599.1,2.4995]
[1724219412570,0.40249158,2599.9,2599.1,2.4995]
[1724219412765,1.668,2600.0,2599.3,2.395]
[1724219412972,1.668,2600.1,2599.5,2.3855]
[1724219413811,1.668,2600.3,2599.5,2.3855]
[1724219414024,1.668,2600.3,2599.7,2.279]
[1724219416009,1.668,2600.1,2599.7,2.279]
[1724219416827,1.668,2599.9,2599.7,2.279]
[1724219425226,1.668,2599.9,2599.7,2.5069]
[1724219425430,1.668,2600.1,2599.7,2.5069]
[1724219425738,1.668,2600.3,2599.7,2.5069]
[1724219431750,1.668,2600.3,2599.8,0.06569884]
[1724219432047,1.668,2600.3,2599.9,2.41]
[1724219432249,1.668,2600.3,2599.9,2.68035988]
[1724219432559,1.668,2600.3,2600.1,2.2617]
[1724219433207,1.668,2600.3,2600.2,0.06632573]
[1724219433406,1.668,2600.3,2600.1,2.2617]
[1724219433853,1.668,2600.3,2600.2,0.06594137]
[1724219434427,1.668,2600.3,2600.1,2.2617]
[1724219434827,1.668,2600.3,2600.2,0.06594137]
[1724219435240,1.668,2600.3,2600.1,2.2617]
[1724219435630,1.668,2600.3,2600.2,0.06594137]
[1724219436052,1.668,2600.3,2600.1,2.2617]
[1724219436252,1.668,2600.3,2600.2,0.06594137]
[1724219436754,1.668,2600.3,2600.1,2.2617]
[1724219437051,1.668,2600.3,2600.2,0.06594137]
[1724219437357,1.668,2600.3,2600.1,2.2617]
[1724219437517,1.668,2600.3,2600.2,0.06594137]
[1724219437712,1.668,2600.3,2600.1,2.2617]
[1724219437942,1.668,2600.3,2600.2,0.06594137]
[1724219438252,1.668,2600.3,2600.1,2.2617]
[1724219438615,1.668,2600.3,2600.2,0.06594137]
[1724219439015,1.668,2600.3,2600.1,2.2617]
[1724219439448,1.668,2600.3,2600.2,0.06594137]
[1724219439848,1.668,2600.3,2600.1,2.2617]
[1724219440041,1.668,2600.3,2600.2,0.06594137]
[1724219440580,1.668,2600.3,2600.1,2.2617]
[1724219440869,1.668,2600.3,2600.2,0.06594137]
[1724219441461,1.668,2600.3,2600.1,2.2617]
[1724219441840,1.668,2600.3,2600.2,0.06594137]
[1724219442188,1.668,2600.3,2600.1,2.2617]
[1724219442387,1.668,2600.3,2600.2,0.06594137]
[1724219442674,1.668,2600.3,2600.1,2.2617]
[1724219442876,5.4098,2600.7,2600.2,0.06594137]
[1724219442877,3.0,2600.7,2600.2,0.06594137]
[1724219443180,3.0,2600.7,2600.1,2.48787]
[1724219443181,1.668,2600.6,2600.3,2.4031]
[1724219444259,1.668,2600.6,2600.4,0.06584023]
[1724219444459,1.668,2600.6,2600.3,2.4031]
[1724219444870,1.668,2600.6,2600.4,0.06584023]
[1724219445071,3.40248355,2600.9,2600.4,0.06584023]
[1724219445291,1.668,2600.8,2600.5,2.3068]
[1724219445492,1.668,2600.6,2600.5,2.3068]
[1724219447551,2.0704563,2600.6,2599.9,2.416]
[1724219447690,2.0704563,2600.6,2600.5,0.06525373]
[1724219447887,2.0704563,2600.6,2600.4,2.37]
[1724219448319,2.0704563,2600.6,2600.5,0.06525373]
[1724219449237,4.62380193,2600.6,2600.5,0.06525373]
[1724219449564,4.62380193,2600.6,2599.9,2.3489]
[1724219449700,2.95580193,2600.6,2600.5,0.06519306]
[1724219450048,0.4024563,2600.6,2599.9,2.3489]
[1724219450247,0.4024563,2600.6,2599.9,1.668]
[1724219450426,0.4024563,2600.6,2600.0,2.39369306]
[1724219450634,1.668,2600.7,2600.0,2.39369306]
[1724219456715,1.668,2600.5,2600.0,2.39369306]
[1724219456942,1.668,2600.5,2600.0,2.63306237]
[1724219458944,1.668,2600.3,2600.0,2.39369306]
[1724219459146,1.668,2600.3,2600.0,0.06519306]
[1724219459378,1.668,2600.3,2599.8,2.4179]
[1724219459550,1.668,2600.3,2600.1,0.0652234]
[1724219459853,1.668,2600.3,2599.8,2.4179]
[1724219460179,1.668,2600.0,2599.4,7.41]
[1724219460358,1.668,2599.8,2599.5,2.3493]
[1724219460514,1.668,2600.0,2599.5,2.3493]
[1724219460853,1.668,2600.0,2599.5,2.58423]
[1724219461056,2.82634725,2600.3,2599.5,2.58423]
[1724219461256,1.668,2600.2,2599.5,2.58423]
[1724219461840,2.82634725,2600.3,2599.5,2.58423]
[1724219462160,4.49434725,2600.4,2599.7,2.3281]
[1724219462448,4.49434725,2600.4,2599.9,2.3281]
[1724219462449,7.49434725,2600.4,2599.9,2.3281]
[1724219462655,5.82634725,2600.4,2599.9,2.3281]
[1724219462829,5.82552189,2600.4,2599.9,2.3281]
[1724219465154,5.82552189,2600.4,2600.0,0.06550654]
[1724219466278,0.40248091,2600.3,2600.1,2.3141]
[1724219466484,0.40248091,2600.3,2600.1,2.55206065]
[1724219466856,2.82552189,2600.5,2600.2,0.06545598]
[1724219469081,4.49352189,2600.6,2600.2,0.06545598]
[1724219469454,2.82552189,2600.6,2600.3,2.4121]
[1724219470545,1.668,2600.7,2600.3,2.4121]
[1724219470546,2.82552189,2600.7,2600.3,2.4121]
[1724219470740,2.82552189,2600.7,2600.4,0.06545596]
[1724219472482,2.8281366,2600.7,2600.4,0.06545596]
[1724219473478,4.4961366,2600.8,2600.4,0.06545596]
[1724219473680,4.4961366,2600.8,2600.4,0.33733256]
[1724219477064,2.82769917,2600.8,2600.5,2.4408]
[1724219477262,2.82769917,2600.9,2600.5,2.4408]
[1724219477472,2.82769917,2600.9,2600.6,0.06518298]
[1724219477852,4.49569917,2601.0,2600.6,0.06518298]
[1724219478192,2.82769917,2601.0,2600.6,0.27778596]
[1724219478392,3.34021965,2601.2,2600.7,2.4542]
[1724219478393,2.82769917,2601.1,2600.7,2.4542]
[1724219478767,2.82769917,2601.0,2600.7,2.4542]
[1724219478971,2.82769917,2601.0,2600.7,2.7273986]
[1724219479373,2.82769917,2601.1,2600.7,2.7273986]
[1724219479573,2.82769917,2601.1,2600.7,2.4542]
[1724219481065,4.49569917,2601.2,2600.7,2.4542]
[1724219481288,4.49569917,2601.2,2600.8,0.2731986]
[1724219481677,4.49569917,2601.2,2600.9,2.3777]
[1724219481872,1.668,2601.2,2600.9,2.3777]
[1724219482601,1.668,2601.2,2601.0,0.0644551]
[1724219483389,4.49569917,2601.4,2601.0,0.0644551]
[1724219484919,1.668,2601.4,2601.0,0.0644551]
[1724219488798,1.668,2601.2,2601.0,0.0644551]
[1724219496279,1.668,2601.4,2601.0,0.0644551]
[1724219497499,1.668,2601.4,2601.1,2.3295]
[1724219497912,1.668,2601.4,2601.2,0.06371733]
[1724219498482,1.668,2601.4,2601.1,2.3295]
[1724219498683,1.668,2601.4,2601.3,0.06370723]
[1724219499022,1.668,2601.4,2601.1,2.3295]
[1724219499180,1.668,2601.4,2601.3,0.06370723]
[1724219499380,1.668,2601.4,2601.1,2.3295]
[1724219499603,1.668,2601.4,2601.2,0.06370723]
[1724219499806,1.668,2601.4,2601.1,2.3295]
[1724219500002,4.668,2601.6,2601.3,0.06370723]
[1724219500203,4.668,2601.6,2599.6,0.80453396]
[1724219500204,0.40245899,2601.7,2601.4,2.2595]
[1724219500613,1.668,2601.6,2601.4,2.2595]
[1724219500813,1.668,2601.6,2600.9,2.2595]
[1724219501120,1.668,2601.3,2601.0,0.39275]
[1724219501412,1.668,2601.3,2601.1,0.06324243]
[1724219505516,1.668,2601.5,2601.1,0.06324243]
[1724219509845,1.668,2601.3,2601.1,0.06324243]
[1724219510057,1.668,2601.3,2600.9,2.2595]
[1724219510340,1.668,2601.3,2601.2,0.06329294]
[1724219510503,1.668,2601.3,2600.9,2.2595]
[1724219510925,1.668,2601.3,2601.0,0.06329294]
[1724219510926,1.668,2601.1,2601.0,0.06329294]
[1724219511458,1.668,2601.1,2601.0,0.06339398]
[1724219511766,1.668,2601.1,2600.5,2.3902]
[1724219511925,1.668,2601.1,2601.0,0.06348491]
[1724219512126,1.668,2601.1,2600.5,2.3902]
[1724219512321,1.668,2601.1,2601.0,0.06361627]
[1724219512526,5.22030587,2601.3,2600.5,2.3902]
[1724219512758,5.22030587,2601.3,2601.0,0.06361627]
[1724219512958,5.22030587,2601.3,2600.5,2.3902]
[1724219512959,1.668,2601.1,2600.5,2.3902]
[1724219513461,1.668,2601.1,2600.6,0.06361627]
[1724219513667,1.668,2601.1,2600.6,1.0499979]
[1724219513862,1.668,2600.9,2600.6,0.06361627]
[1724219514342,1.668,2600.7,2600.6,0.06361627]
[1724219515135,1.668,2600.7,2600.3,2.4288]
[1724219515675,1.668,2600.7,2600.4,0.0636769]
[1724219517545,1.668,2600.9,2600.4,0.0636769]
[1724219518540,1.668,2600.9,2600.4,0.31292459]
[1724219519147,5.28714014,2601.0,2600.4,0.31292459]
[1724219519342,1.668,2601.0,2600.5,2.4735]
[1724219519780,1.668,2601.0,2600.6,0.06388914]
[1724219520133,1.668,2601.0,2600.5,2.4735]
[1724219520346,1.668,2601.0,2600.6,0.27227477]
[1724219520551,1.668,2601.0,2600.6,0.33616391]
[1724219520752,4.49392032,2601.2,2600.7,2.4735]
[1724219520949,2.82592032,2601.1,2600.7,2.4735]
[1724219521187,4.49392032,2601.2,2600.7,2.4735]
[1724219521478,2.82592032,2601.1,2600.8,0.06388914]
[1724219521774,2.82592032,2601.1,2600.7,2.4735]
[1724219522017,2.82592032,2601.1,2600.7,2.74807748]
[1724219522277,2.82592032,2601.1,2600.8,0.06388914]
[1724219522477,2.82592032,2601.1,2600.7,2.74807748]
[1724219522636,2.82592032,2601.1,2600.9,0.06388914]
[1724219522836,2.82592032,2601.1,2600.7,2.4735]
[1724219523059,2.82592032,2601.1,2600.4,0.24924769]
[1724219523060,2.2532,2600.9,2600.4,0.24924769]
[1724219523252,1.668,2600.8,2600.3,2.4912]
[1724219524672,1.668,2600.6,2600.3,2.4912]
[1724219524851,1.668,2600.6,2599.7,9.078]
[1724219524852,1.668,2600.6,2599.9,2.4818]
[1724219529891,1.668,2600.4,2599.9,2.4818]
[1724219530206,1.668,2600.4,2599.9,3.510941]
[1724219534203,1.668,2600.4,2599.8,0.39961]
[1724219534204,1.74503148,2600.4,2599.8,0.39961]
[1724219536706,2.3215,2600.5,2599.7,2.4604]
[1724219536707,1.668,2600.2,2599.7,2.4604]
[1724219536906,3.9782,2600.2,2599.7,2.4604]
[1724219538410,0.40258787,2600.1,2599.7,2.4604]
[1724219541598,2.07058787,2600.1,2599.7,2.4604]
[1724219541916,2.50866666,2600.1,2599.4,9.8864]
[1724219542212,2.50866666,2600.1,2599.4,2.4764]
[1724219542213,2.07058787,2600.1,2599.4,2.4764]
[1724219542714,1.668,2600.1,2599.4,2.4764]
[1724219543700,2.3102,2600.2,2599.4,2.4764]
[1724219543911,6.22031551,2600.5,2599.1,7.41]
[1724219543912,1.668,2600.3,2599.6,2.4343]
[1724219544116,6.41960791,2600.5,2599.8,2.4343]
[1724219544316,5.07057636,2600.5,2599.8,2.4343]
[1724219544990,5.07057636,2600.5,2599.8,2.4063]
[1724219546186,1.668,2600.3,2599.8,2.4063]
[1724219546414,1.668,2600.3,2599.9,0.063325]
[1724219546633,1.668,2600.3,2599.8,2.4063]
[1724219546915,1.668,2600.3,2599.8,2.64693]
[1724219547072,1.668,2600.3,2599.9,0.063325]
[1724219550778,5.07057636,2600.5,2600.0,2.4574]
[1724219550979,5.07057636,2600.5,2600.1,0.063598]
[1724219551204,5.07057636,2600.5,2600.0,2.4574]
[1724219551383,5.07057636,2600.5,2600.1,0.24574]
[1724219552320,2.07057636,2600.5,2600.1,0.24574]
[1724219553588,2.07057636,2600.5,2600.2,2.4294]
[1724219553789,2.07057636,2600.5,2600.3,0.0635171]
[1724219553984,1.668,2600.5,2600.2,2.4294]
[1724219554295,1.668,2600.5,2600.3,0.0635171]
[1724219554482,1.668,2600.5,2600.2,2.4294]
[1724219554688,1.668,2600.5,2600.2,2.696914]
[1724219554906,1.668,2600.5,2600.3,0.06327442]
[1724219555788,1.668,2600.5,2600.2,2.4294]
[1724219556015,1.668,2600.5,2600.3,0.06327442]
[1724219556327,1.668,2600.5,2600.2,2.4294]
[1724219556690,1.668,2600.5,2600.3,0.06327442]
[1724219556890,1.668,2600.5,2600.2,2.4294]
[1724219557107,1.668,2600.5,2600.2,2.67234]
[1724219557433,1.668,2600.7,2600.4,2.458]
[1724219557600,4.89362455,2600.9,2600.4,2.458]
[1724219557934,2.07061648,2600.9,2600.4,2.458]
[1724219558223,5.07061648,2600.9,2600.4,2.458]
[1724219558422,11.76100807,2601.1,2600.5,0.2458]
[1724219558815,1.668,2600.9,2600.5,0.2458]
[1724219559343,1.668,2600.9,2600.4,2.458]
[1724219560319,2.82300807,2601.0,2600.4,2.458]
[1724219560568,1.668,2600.9,2600.4,2.458]
[1724219560765,1.668,2600.7,2600.4,2.458]
[1724219566531,1.668,2600.9,2600.4,2.458]
[1724219566733,1.668,2600.9,2600.4,2.7038]
[1724219568372,4.49231818,2600.9,2600.4,2.7038]
[1724219568543,1.668,2600.9,2600.4,2.7038]
[1724219574066,0.40262265,2600.8,2600.4,2.7038]
[1724219575343,0.40262265,2600.8,2600.5,0.06232409]
[1724219575841,1.668,2600.9,2600.5,0.06232409]
[1724219589812,1.668,2600.7,2600.5,0.06232409]
[1724219590320,4.49157493,2600.7,2600.5,0.06232409]
[1724219590541,1.668,2600.7,2600.5,0.06232409]
[1724219591809,2.07035557,2600.7,2600.5,0.06232409]
[1724219593680,0.40235557,2600.7,2600.5,0.06232409]
[1724219597497,0.40235557,2600.7,2600.6,2.3466]
[1724219597911,0.40235557,2600.7,2600.6,2.40906562]
[1724219598285,0.40235557,2600.7,2600.6,2.3466]
[1724219598484,0.40235557,2600.7,2600.6,2.40906562]
[1724219601725,3.23218415,2600.7,2600.6,0.06246562]
[1724219602230,4.90018415,2600.7,2599.9,2.3721]
[1724219602529,2.83089383,2600.6,2600.1,2.3721]
[1724219603228,2.83089383,2600.6,2600.2,0.06239486]
[1724219603397,2.83089383,2600.5,2600.2,0.06239486]
[1724219603828,2.83089383,2600.6,2600.2,0.06239486]
[1724219605414,2.83089383,2600.6,2600.2,0.42275165]
[1724219608714,2.07035557,2600.7,2600.2,0.42275165]
[1724219608715,4.9012494,2600.7,2600.2,0.42275165]
[1724219608914,4.9012494,2600.7,2600.2,0.36035679]
[1724219609654,4.90056165,2600.7,2600.2,0.36035679]
[1724219612451,4.90056165,2600.7,2600.3,2.2792]
[1724219612618,3.23256165,2600.7,2600.3,2.2792]
[1724219613209,0.40235557,2600.7,2600.3,2.54315568]
[1724219613540,0.40235557,2600.7,2600.4,2.38475659]
[1724219614606,2.82987189,2600.9,2600.4,2.38475659]
[1724219615506,2.82987189,2600.8,2600.4,2.38475659]
[1724219616146,2.82987189,2600.9,2600.4,2.38475659]
[1724219616351,2.82987189,2600.9,2600.5,0.26487123]
[1724219617151,2.82987189,2600.9,2600.6,0.06249594]
[1724219617355,2.82987189,2600.9,2600.5,0.26487123]
[1724219617557,2.82977788,2600.9,2600.7,0.06249594]
[1724219617731,2.82977788,2600.9,2600.7,2.3638]
[1724219617931,2.82977788,2601.0,2600.7,2.62666712]
[1724219618119,2.82977788,2601.0,2600.7,2.3638]
[1724219618320,2.8296974,2601.0,2600.7,2.3638]
[1724219618653,2.0706227,2601.3,2600.7,2.3638]
[1724219618654,2.8296974,2601.1,2600.7,2.3638]
[1724219618853,2.8296974,2601.0,2600.7,2.3638]
[1724219619445,1.668,2601.1,2600.7,2.3638]
[1724219619622,2.82948168,2601.0,2600.7,2.3638]
[1724219619959,2.82948168,2601.0,2600.8,0.06239486]
[1724219620131,2.82948168,2601.0,2600.7,2.3638]
[1724219620455,2.82948168,2601.0,2600.9,0.06239486]
[1724219620656,2.82948168,2601.0,2600.7,2.3638]
[1724219620657,4.49748168,2601.1,2600.7,2.3638]
[1724219620960,4.49748168,2601.1,2600.8,0.06239486]
[1724219621166,4.49748168,2601.1,2600.7,2.3638]
[1724219621325,4.49748168,2601.1,2600.9,0.06239486]
[1724219621526,4.49748168,2601.1,2600.7,2.3638]
[1724219621850,4.49748168,2601.1,2601.0,0.06239486]
[1724219622046,4.49748168,2601.1,2600.7,2.3638]
[1724219622452,4.49748168,2601.1,2600.8,0.06203099]
[1724219622826,4.49748168,2601.1,2600.7,2.3638]
[1724219623129,2.82948168,2601.1,2600.7,2.3638]
[1724219623333,4.49748168,2601.1,2600.8,0.06203099]
[1724219623848,4.49748168,2601.1,2600.7,2.3638]
[1724219624045,4.49748168,2601.1,2600.9,0.06203099]
[1724219624247,1.668,2601.1,2600.7,2.3638]
[1724219624447,4.49629621,2601.1,2600.7,2.3638]
[1724219624678,1.668,2601.1,2600.8,0.06203099]
[1724219625051,1.668,2601.1,2600.7,2.3638]
[1724219625377,1.668,2601.1,2600.7,2.62666712]
[1724219625551,1.668,2601.1,2600.8,0.06203099]
[1724219625872,2.82829621,2601.2,2600.7,2.62666712]
[1724219626033,2.82829621,2601.2,2600.9,0.06203099]
[1724219626238,2.82829621,2601.2,2600.7,2.62666712]
[1724219626674,3.23091891,2601.3,2600.9,2.2599]
[1724219627934,0.4026227,2601.3,2600.9,2.2599]
[1724219628339,3.23091891,2601.3,2600.9,2.2599]
[1724219628541,0.4026227,2601.3,2600.9,2.2599]
[1724219633269,1.668,2601.2,2600.9,2.2599]
[1724219635383,1.668,2601.2,2600.9,2.51215667]
[1724219637685,5.8267518,2601.5,2600.9,2.51215667]
[1724219637686,2.8267518,2601.5,2600.9,2.51215667]
[1724219637881,1.668,2601.4,2600.9,2.51215667]
[1724219638072,2.82460123,2601.6,2600.9,2.51215667]
[1724219638073,1.668,2601.3,2600.9,2.51215667]
[1724219638241,1.668,2601.3,2600.9,2.2599]
[1724219649508,5.24655755,2601.4,2600.2,7.41]
[1724219649509,1.668,2601.1,2600.5,2.4406]
[1724219650254,1.668,2601.1,2600.6,0.06179856]
[1724219650768,1.668,2600.9,2600.6,0.06179856]
[1724219653592,0.40262398,2600.8,2600.6,0.06179856]
[1724219655832,1.74503148,2600.7,2600.6,0.06179856]
[1724219656162,1.74503148,2600.7,2600.3,2.3458]
[1724219656163,1.668,2600.7,2600.3,2.3458]
[1724219656344,1.668,2600.7,2600.6,0.05764625]
[1724219656545,2.3965688,2600.7,2600.3,2.3458]
[1724219656785,1.668,2600.7,2600.3,2.3458]
[1724219656993,3.23002823,2600.8,2600.4,0.05764625]
[1724219657152,0.40262398,2600.8,2600.4,0.05764625]
[1724219658282,0.40262398,2600.8,2600.5,2.4548]
[1724219658633,0.40262398,2600.8,2600.6,0.05783829]
[1724219662472,0.40262398,2600.8,2600.5,2.4548]
[1724219662651,0.40262398,2600.8,2600.7,0.05826275]
[1724219662855,0.40262398,2600.8,2600.5,2.4548]
[1724219663054,0.40262398,2600.8,2600.7,0.05826275]
[1724219663249,0.40262398,2600.8,2600.5,2.4548]
[1724219663458,0.40262398,2600.8,2600.7,0.05826275]
[1724219663651,0.40262398,2600.8,2600.5,2.4548]
[1724219663856,0.40262398,2600.8,2600.7,0.05826275]
[1724219664191,0.40262398,2600.8,2600.5,2.4548]
[1724219664691,0.40262398,2600.8,2600.6,0.05826275]
[1724219665046,1.668,2600.9,2600.5,2.4548]
[1724219665246,1.668,2600.9,2600.7,0.05826275]
[1724219665466,1.668,2600.9,2600.5,2.4548]
[1724219665671,1.668,2600.9,2600.8,0.05826275]
[1724219665873,1.668,2600.9,2600.5,2.4548]
[1724219666061,1.668,2600.9,2600.8,0.05826275]
[1724219666249,1.668,2600.9,2600.5,2.4548]
[1724219666445,1.668,2600.9,2600.8,0.05826275]
[1724219666684,1.668,2600.9,2600.5,2.4548]
[1724219666863,1.668,2600.9,2600.8,0.05826275]
[1724219667043,1.668,2600.9,2600.5,2.4548]
[1724219667243,1.668,2600.9,2600.8,0.05826275]
[1724219667478,1.668,2600.9,2600.5,2.4548]
[1724219667680,1.668,2600.9,2600.8,0.05826275]
[1724219667882,1.668,2600.9,2600.5,2.4548]
[1724219668092,2.82690731,2601.1,2600.7,2.3973]
[1724219668386,3.0,2601.0,2600.7,2.3973]
[1724219668588,2.82690731,2601.1,2600.7,2.3973]
[1724219669357,2.82690731,2601.1,2600.3,1.668]
[1724219669358,1.668,2600.8,2600.4,2.2744]
[1724219669571,1.668,2600.8,2600.5,0.28572297]
[1724219670386,1.668,2600.8,2600.5,0.22744]
[1724219672073,1.668,2600.8,2600.4,2.2744]
[1724219672472,4.49463929,2600.8,2600.4,2.2744]
[1724219673392,1.668,2600.8,2600.4,2.2744]
[1724219678134,1.668,2600.8,2600.0,2.3549]
[1724219678474,1.668,2600.8,2600.1,0.05825264]
[1724219678675,1.668,2600.8,2600.2,2.3549]
[1724219679000,1.668,2600.8,2600.3,0.23549]
[1724219679328,1.668,2600.8,2600.4,0.05819199]
[1724219680384,2.82637611,2600.9,2600.5,2.3712]
[1724219680580,0.40260199,2600.7,2600.6,0.05839417]
[1724219680810,0.40260199,2600.7,2600.6,0.30135359]
[1724219692934,6.34161391,2601.2,2600.6,2.80065359]
[1724219692935,2.8288795,2601.2,2600.6,2.80065359]
[1724219694288,10.0988795,2601.3,2600.6,2.80065359]
[1724219694488,2.8288795,2601.3,2600.6,2.80065359]
[1724219694685,2.8288795,2601.3,2600.7,2.82446536]
[1724219694897,2.8288795,2601.3,2600.7,2.88229351]
[1724219695136,4.4968795,2601.4,2600.7,2.88229351]
[1724219696693,2.8288795,2601.4,2600.8,2.4005]
[1724219696894,2.4881,2601.6,2600.9,2.85781935]
[1724219696895,2.8288795,2601.6,2600.9,2.85781935]
[1724219697086,1.668,2601.6,2600.9,2.85781935]
[1724219697285,4.49551917,2601.6,2600.9,2.85781935]
[1724219697501,4.49551917,2601.6,2601.1,2.3553]
[1724219698888,1.668,2601.4,2601.1,2.3553]
[1724219700402,1.668,2601.4,2601.0,0.28578194]
[1724219700617,1.668,2601.4,2601.1,0.05756542]
[1724219700802,1.668,2601.4,2600.9,2.89061935]
[1724219701018,1.668,2601.4,2601.0,0.05701978]
[1724219701209,1.668,2601.2,2601.0,0.05701978]
[1724219701529,1.668,2601.2,2600.6,0.24295942]
[1724219701530,1.668,2601.3,2600.7,2.3463]
[1724219701730,1.668,2601.3,2601.1,0.05701978]
[1724219701929,1.668,2601.3,2600.8,0.25892594]
[1724219702316,1.668,2601.3,2600.9,0.05701978]
[1724219702656,1.668,2601.3,2600.8,0.25892594]
[1724219702843,1.668,2601.3,2601.0,0.05701978]
[1724219703013,1.668,2601.3,2600.8,0.25892594]
[1724219703208,1.668,2601.3,2600.9,0.05701978]
[1724219703539,1.668,2601.3,2600.8,0.25892594]
[1724219703708,1.668,2601.1,2600.8,0.25892594]
[1724219703915,1.668,2601.1,2600.9,0.05701978]
[1724219704618,1.668,2601.1,2600.7,2.3463]
[1724219704945,1.668,2601.1,2601.0,0.0570905]
[1724219705448,1.668,2601.1,2600.7,2.60522594]
[1724219705616,1.668,2601.1,2601.0,0.05713092]
[1724219705817,1.668,2601.1,2600.7,2.60522594]
[1724219706024,1.668,2601.1,2601.0,0.05713092]
[1724219706217,1.668,2601.1,2600.7,2.60522594]
[1724219706549,1.668,2601.1,2600.8,0.34194946]
[1724219710724,0.40256782,2601.3,2600.8,0.34194946]
[1724219710924,1.668,2601.2,2600.8,0.34194946]
[1724219713052,1.668,2601.2,2600.9,2.3577]
[1724219713253,1.668,2601.2,2600.9,2.41496226]
[1724219717041,1.668,2601.2,2600.9,0.05726226]
[1724219717266,1.668,2601.2,2600.7,2.3933]
[1724219717476,1.668,2601.2,2601.0,0.05721174]
[1724219717769,1.668,2601.2,2600.7,2.3933]
[1724219717971,1.668,2601.2,2601.1,0.05721174]
[1724219718176,1.668,2601.2,2600.7,2.3933]
[1724219718672,1.668,2601.0,2600.8,0.05721174]
[1724219718860,1.668,2601.0,2600.7,2.3933]
[1724219719067,1.668,2601.0,2600.9,0.05727236]
[1724219719269,1.668,2601.0,2600.7,2.3933]
[1724219719575,1.668,2601.0,2600.9,0.05727236]
[1724219719781,1.668,2601.0,2600.7,2.3933]
[1724219720140,1.668,2601.0,2600.9,0.05727236]
[1724219720336,1.668,2601.0,2600.7,2.3933]
[1724219720541,1.668,2601.0,2600.9,0.05727236]
[1724219720850,1.668,2601.0,2600.7,2.3933]
[1724219721034,1.668,2601.0,2600.9,0.05727236]
[1724219721854,1.668,2601.0,2600.7,2.3933]
[1724219722056,1.668,2601.0,2600.9,0.05727236]
[1724219722282,1.668,2601.0,2600.7,2.3933]
[1724219722435,1.668,2601.0,2600.9,0.05727236]
[1724219722640,1.668,2601.0,2600.7,2.3933]
[1724219722938,1.668,2601.0,2600.9,0.05727236]
[1724219723247,1.668,2601.0,2600.7,2.3933]
[1724219723580,1.668,2601.0,2600.9,0.05727236]
[1724219723746,1.668,2601.0,2600.8,0.05536328]
[1724219723946,1.668,2601.0,2600.7,2.3933]
[1724219724489,1.668,2601.0,2600.8,0.05173575]
[1724219724881,1.668,2601.0,2600.9,0.04994956]
[1724219725058,1.668,2601.0,2600.7,2.3933]
[1724219725243,1.668,2601.0,2600.9,0.04822504]
[1724219725442,1.668,2601.0,2600.7,2.3933]
[1724219725676,1.668,2601.0,2600.9,0.04656005]
[1724219725878,1.668,2601.0,2600.7,2.3933]
[1724219726079,1.668,2601.0,2600.9,0.04495255]
[1724219726291,1.668,2601.0,2600.7,2.3933]
[1724219726496,1.668,2601.0,2600.9,0.04340055]
[1724219726659,1.668,2601.0,2600.7,2.3933]
[1724219726859,1.668,2601.0,2600.9,0.04190213]
[1724219727061,1.668,2601.0,2600.7,2.3933]
[1724219727263,1.668,2601.0,2600.9,0.0405767]
[1724219727460,1.668,2601.0,2600.7,2.3933]
[1724219727693,1.668,2601.0,2600.9,0.03917592]
[1724219727996,1.668,2601.0,2600.7,2.3933]
[1724219728363,1.668,2601.0,2600.8,0.03782336]
[1724219729550,1.668,2601.0,2600.7,2.3933]
[1724219731767,1.668,2601.0,2600.5,2.3185]
[1724219732379,1.668,2601.0,2600.5,3.29135]
[1724219733801,1.668,2600.6,2600.2,2.2716]
[1724219734107,1.668,2600.6,2599.8,2.2716]
[1724219734608,4.49547423,2600.6,2599.8,2.2716]
[1724219734907,1.668,2600.6,2599.8,2.2716]
[1724219735046,1.668,2600.6,2599.9,1.13496]
[1724219735250,4.49547423,2600.6,2599.9,1.13496]
[1724219736051,1.668,2600.4,2599.9,1.13496]
[1724219739210,1.668,2600.4,2599.7,7.41]
[1724219744515,1.668,2600.4,2599.6,2.3489]
[1724219747215,4.1322,2600.5,2599.7,1.668]
[1724219747532,7.1322,2600.5,2599.7,1.668]
[1724219749017,5.4642,2600.5,2599.7,1.668]
[1724219749328,0.40258249,2600.6,2600.0,2.3984]
[1724219751930,2.07058249,2600.6,2600.0,2.3984]
[1724219753795,1.668,2600.6,2600.0,2.3984]
[1724219755488,2.3124,2600.5,2599.8,0.40169]
[1724219755690,1.74503148,2600.6,2599.8,0.40169]
[1724219755691,1.668,2600.4,2599.8,0.40169]
[1724219755922,2.3826,2600.3,2599.9,0.947969]
[1724219762054,2.3826,2600.3,2599.8,0.40169]
[1724219766447,2.3826,2600.3,2599.6,2.2842]
[1724219766448,2.4552,2600.1,2599.4,9.6916]
[1724219769116,2.4552,2600.1,2599.4,7.41]
[1724219770851,2.4552,2600.1,2599.5,1.668]
[1724219771046,2.4552,2600.1,2599.5,4.1294]
[1724219772486,2.4552,2600.1,2599.6,1.15394]